[Event "ESP-chT Honor Division 2022"]
[Site "Linares"]
[Date "2022.09.19"]
[Round "3.22"]
[White "Perez Candelario, Manuel"]
[Black "Arizmendi Martinez, Julen Luis"]
[Result "1/2-1/2"]
[ECO "C88"]
[WhiteElo "2566"]
[BlackElo "2488"]
[Annotator "TA"]
[PlyCount "101"]
[EventDate "2022.09.17"]
[EventType "team-tourn"]
[EventCountry "ESP"]
[SourceTitle "playchess.com"]
[Source "ChessBase"]
[SourceQuality "1"]
[TimeControl "5400+30"]

{[%evp 20,101,28,22,35,24,17,27,19,13,48,41,48,48,48,48,48,49,52,47,64,41,47,6,31,20,36,43,47,45,41,29,32,31,38,37,38,31,47,47,47,52,43,4,14,8,67,67,62,67,67,66,66,58,83,30,66,10,10,10,10,10,49,49,49,49,49,49,49,49,58,58,59,58,58,0,0,0,0,0,0,0,0,-16]} 1. e4 {[%emt 0:00:02]} e5 {[%emt 0:01:10]} 2. Nf3 {[%emt 0:00:05]} Nc6 {[%emt 0:00:07]} 3. Bb5 {[%emt 0:00:03][%cal Bf1b5,Bb5a4,Ba4b3][%mdl 32]} a6 {[%emt 0:00:11]} 4. Ba4 {[%emt 0:00:05]} Nf6 {[%emt 0:00:55]} 5. O-O {[%emt 0:00:11]} Be7 {[%emt 0:01:28]} 6. Re1 {[%emt 0:00:22]} b5 {[%emt 0:01:56]} 7. Bb3 {[%emt 0:00:04]} d6 {[%emt 0:00:55]} 8. c3 {[%emt 0:00:23]} Na5 {[%emt 0:01:50]} 9. Bc2 {[%emt 0:00:19]} c5 {[%emt 0:00:16]} 10. d4 {[%emt 0:07:11]} cxd4 {[%emt 0:00:52]} 11. cxd4 {[%emt 0:00:05] RECAPT} Bg4 $1 {[%emt 0:00:30][%mdl 4] CPLX 2.3 13 (0-0) (=13) is now more promising than 11...Qc7. C90: Closed Ruy Lopez with 7...d6: Early deviations.} 12. dxe5 {[%emt 0:11:48] CPLX 2.6 11 (Nb1-d2) (=6)} Bxf3 {[%emt 0:00:21][%mdl 64] [#] Remove Defender. CPLX 3.1} 13. Qxf3 {[%emt 0:00:05] RECAPT} dxe5 {[%emt 0:00:07] EASY. White has an edge.} 14. Nc3 {[%emt 0:01:22] BESTDEEP} Nc6 {[%emt 0:21:26] CPLX 2.2 35 (0-0) (=12)} 15. Be3 {[%emt 0:02:34] [#] BESTDEEP} Nd4 $146 {[%emt 0:22:24] EASY} ({Predecessor:} 15... O-O 16. Rad1 Nd4 17. Bxd4 exd4 18. e5 Ne8 19. Nd5 Bc5 20. b4 Ba7 21. Be4 Rc8 22. Qf5 g6 23. Qxc8 {1-0 (23) Szalanczy,E (2074)-Hashem,K (1933) Budapest 2019}) 16. Bxd4 {[%emt 0:02:26] EASY} Qxd4 {[%emt 0:00:14] RECAPT} 17. Bb3 {[%emt 0:04:45] And now Nd5 would win. BESTDEEP} O-O {[%emt 0:11:51] CPLX 2.7} 18. Red1 {[%emt 0:00:50] CPLX 2.8} Qa7 {[%emt 0:01:37] CPLX 3.2 3 (Qd4-b6) (=6)} 19. Nd5 {[%emt 0:04:54] CPLX 2.7} Rad8 {[%emt 0:05:40] CPLX 2.7 17 (Nf6xd5) (=8)} 20. Rac1 {[%emt 0:23:43] [#] Hoping for Rc7. CPLX 2.8 23 (Qf3-e3) (=3)} Nxd5 {[%emt 0:00:29] CPLX 2.8} 21. Bxd5 {[%emt 0:03:42] CPLX 3.0 41 (Rd1xd5) (=7)} Rd6 {[%emt 0:02:09] CPLX 2.6 25 (Be7-c5) (=8)} 22. Rc2 {[%emt 0:03:01] CPLX 2.7 11 (Qf3-c3) (=7)} Rf6 {[%emt 0:04:46] CPLX 2.7 16 (Be7-d8) (=9)} 23. Qc3 {[%emt 0:00:40] CPLX 3.1} Bd6 {[%emt 0:00:29][%cal Be7d6,Bd6b8,Bb8a7,Ba7b6][%mdl 32] CPLX 2.8 4 (Qa7-b8) (=9)} 24. g3 {[%emt 0:01:25] CPLX 2.8 2 (Rd1-c1) (=6)} g6 {[%emt 0:04:46] CPLX 2.8 0 (Rf8-d8) (=8)} 25. Qe3 {[%emt 0:00:55] CPLX 2.8 12 (Kg1-g2) (=7)} Qxe3 {[%emt 0:02:30] EASY} 26. fxe3 {[%emt 0:00:04] RECAPT} Bb8 {[%emt 0:02:13] CPLX 2.0 7 (a6-a5) (=8)} 27. Rf1 {[%emt 0:00:37] CPLX 2.0} Rd6 {[%emt 0:06:44] CPLX 2.2} 28. Rfc1 {[%emt 0:01:21] CPLX 2.0 7 (Kg1-f2) (=6)} Ba7 {[%emt 0:03:44] CPLX 2.0 16 (Rd6-f6) (=8)} 29. Kf2 {[%emt 0:00:30] CPLX 2.0} Bb6 {[%emt 0:00:10] Inhibits Rc7. CPLX 2.0} 30. Ke2 {[%emt 0:01:16] BESTDEEP} Kg7 {[%emt 0:01:08] CPLX 2.0} 31. Rc8 {[%emt 0:03:36] CPLX 2.0 39 (Rc2-c6) (=7)} Rxc8 {[%emt 0:01:30] CPLX 2.2} 32. Rxc8 $11 {[%emt 0:00:06][%mdl 4096] Endgame KRB-KRB. RECAPT} f5 {[%emt 0:00:53] RELBLUND 59 (g6-g5) (=9)} (32... g5 $11) 33. b4 $14 {[%emt 0:03:57] CPLX 2.1} fxe4 {[%emt 0:00:39] CPLX 2.2} 34. Bxe4 {[%emt 0:00:11] RECAPT} a5 {[%emt 0:00:42] BESTDEEP} 35. a3 {[%emt 0:01:54] CPLX 2.1} axb4 {[%emt 0:00:02] CPLX 2.0 0 (Rd6-d8) (=8)} 36. axb4 {[%emt 0:00:04] RECAPT} Bd8 {[%emt 0:00:39] CPLX 2.0 25 (Rd6-d8) (=8)} 37. Rc5 {[%emt 0:03:13] CPLX 2.0 53 (Rc8-b8) (=7)} (37. Rb8 $16) 37... Kf6 {[%emt 0:00:09] CPLX 2.0 36 (Rd6-b6) (=9)} 38. h4 {[%emt 0:08:48] White is more active. RELBLUND 56 (Rc5xb5) (=9)} (38. Rxb5 $14 Rb6 39. Rxb6+ Bxb6 40. Kd3) 38... Rb6 $1 $11 {[%emt 0:01:05] DEEPSTRONG} 39. g4 {[%emt 0:01:03] CPLX 2.0} h6 {[%emt 0:00:39] Inhibits g5+. BESTDEEP} 40. Rc8 {[%emt 0:01:35] BESTDEEP} Ke7 {[%emt 0:00:40] MISS-Bd8-e7 39 (Bd8-e7) (=10)} 41. h5 {[%emt 0:04:03] BESTDEEP} gxh5 {[%emt 0:00:16] CPLX 2.1} 42. gxh5 {[%emt 0:00:03] RECAPT} Ra6 {[%emt 0:00:29] CPLX 2.0} 43. Rb8 {[%emt 0:01:45] BESTDEEP} Rb6 {[%emt 0:00:22] BESTDEEP} 44. Ra8 {[%emt 0:00:10] CPLX 2.1} Kd7 {[%emt 0:00:44] CPLX 2.0 9 (Rb6-f6) (=9)} 45. Bf5+ {[%emt 0:00:37] CPLX 2.0} Ke7 {[%emt 0:00:18] EASY} 46. Kf3 {[%emt 0:01:05] CPLX 2.0 1 (Ra8-c8) (=7)} Kf6 {[%emt 0:00:40] CPLX 2.0 0 (Bd8-c7) (=8)} 47. Ke4 {[%emt 0:02:25] CPLX 2.2 58 (Bf5-e4) (=8)} (47. Be4 $14 Rd6 48. Rb8) 47... Be7 {[%emt 0:00:30] CPLX 2.2. The position is equal.} 48. Rg8 {[%emt 0:02:54] White threatens Rg6+ and mate. CPLX 2.0} Kf7 {[%emt 0:00:03] CPLX 2.2} 49. Rg4 {[%emt 0:01:20] CPLX 2.2 0 (Rg8-h8) (=8)} Bxb4 {[%emt 0:00:11] CPLX 2.0} 50. Kxe5 {[%emt 0:00:14] EASY} Bc3+ {[%emt 0:00:36] CPLX 2.0 0 (Bb4-d2) (=8)} 51. Ke4 {Weighted Error Value: White=0.10 (very precise) /Black=0.09 (flawless)} 1/2-1/2

[Event "ESP-chT Honor Division 2022"]
[Site "Linares"]
[Date "2022.09.19"]
[Round "3.23"]
[White "Macias Pino, Diego"]
[Black "Stefanova, Antoaneta"]
[Result "1/2-1/2"]
[ECO "C54"]
[WhiteElo "2381"]
[BlackElo "2472"]
[Annotator "TA"]
[PlyCount "45"]
[EventDate "2022.09.17"]
[EventType "team-tourn"]
[EventCountry "ESP"]
[SourceTitle "playchess.com"]
[Source "ChessBase"]
[SourceQuality "1"]
[TimeControl "5400+30"]

{[%evp 17,45,0,2,0,15,0,7,9,15,7,14,14,14,10,15,0,0,0,39,0,0,0,0,0,0,0,0,0,0,0]} 1. e4 {[%emt 0:00:27]} e5 {[%emt 0:00:05]} 2. Nf3 {[%emt 0:00:13]} Nc6 {[%emt 0:00:04]} 3. Bc4 {[%emt 0:00:07]} Bc5 {[%emt 0:00:09]} 4. c3 {[%emt 0:00:50]} Nf6 {[%emt 0:00:23]} 5. d4 {[%emt 0:00:07]} exd4 {[%emt 0:00:12]} 6. e5 {[%emt 0:00:05]} d5 {[%emt 0:00:50]} 7. Bb5 {[%emt 0:00:06]} Ne4 {[%emt 0:00:36]} 8. cxd4 {[%emt 0:00:09]} Bb6 {[%emt 0:00:22]} 9. Nc3 {[%emt 0:00:15]} O-O {[%emt 0:00:49] CPLX 2.9} 10. Be3 {[%emt 0:00:05] BESTDEEP. C54: Giuoco Piano: 4 c3 Nf6, main lines with 5 d4 and 5 d3.} f5 {[%emt 0:01:44] CPLX 2.8 15 (Bc8-g4) (=8)} 11. exf6 {[%emt 0:01:11] CPLX 3.0 15 (g2-g3) (=8) 11.g3 is vanishing.} Rxf6 {[%emt 0:01:10] RECAPT 7 (Ne4xc3) (=7)} 12. Rc1 {[%emt 0:06:49][%cal Oc3d5] CPLX 2.9 0 (0-0) (=5)} (12. O-O {feels hotter.} Bg4 13. Be2 Qd6 14. Rc1) 12... Nxc3 {[%emt 0:38:18] BESTDEEP} 13. bxc3 {[%emt 0:00:31] RECAPT} Bg4 {[%emt 0:00:11] CPLX 2.3 7 (Qd8-d6) (=6)} 14. Be2 {[%emt 0:01:19] CPLX 2.6} Qd6 {[%emt 0:01:43] [#] CPLX 2.3} 15. O-O $146 {[%emt 0:02:38] BESTDEEP} ({Predecessor:} 15. h3 Bh5 16. O-O Raf8 17. g4 Bg6 18. Bg5 Re6 19. Bh4 Qa3 20. Ng5 Ref6 21. Nf3 {1-0 (35) Ponkratov,P (2608)-Goganov,A (2579) Khanty-Mansiysk 2017}) 15... h6 {[%emt 0:02:00] CPLX 2.7 5 (Rf6-f8) (=5)} 16. Re1 {[%emt 0:03:05] CPLX 2.7 15 (h2-h3) (=4)} Re8 {[%emt 0:05:42] CPLX 2.7} 17. Qd2 {[%emt 0:05:03] BESTDEEP} Re4 {[%emt 0:14:40] CPLX 2.9 39 (Rf6-f8) (=8)} 18. Qd1 {[%emt 0:04:45] [#] Threatens to win with Nd2. CPLX 2.8 39 (h2-h3) (=8)} (18. h3 $5 {[%cal Rh3g4]} Bd7 19. Nh2 $11) 18... Re8 {[%emt 0:06:59] BESTDEEP. The position is equal.} 19. Rc2 {[%emt 0:04:54] CPLX 2.8 0 (Qd1-d2) (=7)} Bf5 {[%emt 0:02:45] CPLX 2.9 0 (Qd6-d7) (=7)} 20. Bd3 {[%emt 0:00:47] CPLX 2.7} Bg4 {[%emt 0:00:44] BESTDEEP} 21. Be2 {[%emt 0:00:58] BESTDEEP} Bf5 {[%emt 0:00:04] CPLX 2.9 0 (Qd6-d7) (=6)} 22. Bd3 {[%emt 0:02:05] CPLX 2.7} Bg4 {[%emt 0:00:32] BESTDEEP} 23. Be2 {[%emt 0:01:57] An even fight not without its subleties.  Weighted Error Value: White=0.06 (flawless) /Black=0.05 (flawless)} 1/2-1/2

[Event "ESP-chT Honor Division 2022"]
[Site "Linares"]
[Date "2022.09.19"]
[Round "3.24"]
[White "Garrido Outon, Alex"]
[Black "Garcia Martin, Marta"]
[Result "1-0"]
[ECO "C88"]
[WhiteElo "2411"]
[BlackElo "2325"]
[Annotator "TA"]
[PlyCount "57"]
[EventDate "2022.09.17"]
[EventType "team-tourn"]
[EventCountry "ESP"]
[SourceTitle "playchess.com"]
[Source "ChessBase"]
[SourceQuality "1"]
[TimeControl "5400+30"]

{[%evp 16,57,20,17,33,29,23,15,13,0,27,23,33,21,33,18,27,0,29,0,28,20,21,7,20,28,36,3,69,77,167,86,155,169,311,313,379,390,380,377,388,370,366,359]} 1. e4 {[%emt 0:00:04]} e5 {[%emt 0:00:30]} 2. Nf3 {[%emt 0:00:14]} Nc6 {[%emt 0:00:09]} 3. Bb5 {[%emt 0:00:11]} a6 {[%emt 0:00:06]} 4. Ba4 {[%emt 0:00:09]} Nf6 {[%emt 0:00:08]} 5. O-O {[%emt 0:00:14]} Be7 {[%emt 0:00:07]} 6. Re1 {[%emt 0:00:14]} b5 {[%emt 0:00:10]} 7. Bb3 {[%emt 0:00:09]} O-O {[%emt 0:00:09]} 8. h3 {[%emt 0:00:47]} Bb7 {[%emt 0:00:17]} 9. d3 {[%emt 0:00:27] CPLX 2.2} d5 {[%emt 0:01:00] CPLX 2.3 16 (d7-d6) (=16). C88: Closed Ruy Lopez: Anti-Marshall Systems.} 10. exd5 {[%emt 0:01:13] EASY} Nxd5 {[%emt 0:00:08] RECAPT} 11. a4 $1 {[%emt 0:00:37][%mdl 4] CPLX 2.5 8 (Nf3xe5) (=3) is recently more successful than 11.Nxe5.} Ndb4 {[%emt 0:03:21] BESTDEEP. The position is equal.} 12. Nbd2 {[%emt 0:15:16] BESTDEEP} Na5 {[%emt 0:02:05][%cal Oe5e4] CPLX 3.0 27 (Be7-d6) (=11)} 13. Nxe5 {[%emt 0:00:30] CPLX 3.2} (13. Rxe5 Bd6 14. Re1 Nxb3 15. Nxb3 Bxf3 16. gxf3 Qd7 $15) 13... Nxb3 {[%emt 0:00:22] CPLX 3.7} 14. Nxb3 {[%emt 0:00:09] RECAPT} Qd5 {[%emt 0:08:22][%csl Gb7][%cal Rd5g2] CPLX 3.2} 15. Nf3 {[%emt 0:00:19] CPLX 4.5 15 (f2-f3) (=3)} Qd7 {[%emt 0:14:06] CPLX 3.2 9 (b5xa4) (=7)} 16. Ne5 {[%emt 0:00:17] CPLX 2.9 27 (Re1-e3) (=6)} Qd5 {[%emt 0:00:13][%csl Gb7][%cal Rd5g2] CPLX 3.6} 17. Nf3 {[%emt 0:00:11] CPLX 4.5 29 (f2-f3) (=9)} Qd7 {[%emt 0:00:07] BESTDEEP} 18. Re3 {[%emt 0:00:14] BESTDEEP} Nd5 {[%emt 0:20:51] BESTDEEP} 19. Re5 {[%emt 0:00:30] CPLX 2.8} Bd6 {[%emt 0:03:32] This bishop pair is nice. CPLX 2.8} 20. Re1 {[%emt 0:00:17] BESTDEEP} Nb4 {[%emt 0:08:52] And now ...Bxf3 would win. CPLX 2.6 8 (Ra8-e8) (=5)} 21. Ne5 {[%emt 0:05:36] [#] CPLX 3.1 33 (Nf3-h4) (=9)} Bxe5 $146 {[%emt 0:02:29] RELBLUND 66 (Qd7-f5) (=10)} (21... Qf5 $11 22. Nd4 Qf6) ({Predecessor:} 21... Qf5 22. Nd4 Qf6 23. Ndf3 Bxe5 24. Nxe5 Rae8 25. d4 Qf5 26. Ra3 f6 27. Nd3 Qd5 28. Nf4 Rxe1+ 29. Qxe1 Nxc2 30. Nxd5 Nxe1 {½-½ (43) Kharlamov,V (2496)-Brasier,J (2435) ICCF email 2018}) 22. Rxe5 $14 {[%emt 0:00:12][%cal Be1e5,Be5g5,Bg5g3][%mdl 32] RECAPT} Qc6 {[%emt 0:00:55] [#] MISSDEEP-Bb7-d5 90 (Bb7-d5) (=15)} (22... Bd5 $16 {was necessary.}) 23. Rg5 $1 $18 {[%emt 0:03:15] Threatens to win with Na5. DEEPSTRONG=>BLUNDERREACT} f6 {[%emt 0:08:14] [#] CPLX 3.4 69 (Qc6xc2) (=19)} ({Black should try} 23... Qxc2 24. Be3 Qxd1+ 25. Rxd1 bxa4) 24. Rg3 $1 $36 {[%emt 0:03:35][%mdl 2048] Hoping for Qg4. White is on the roll. DEEPSTRONG} ({Don't take} 24. Nd4 $6 Qd7 25. Rg3 Qxd4 $11) 24... f5 {[%emt 0:06:07] Against Qg4. CPLX 3.4 142 (Rf8-f7) (=27)} (24... Rf7 $142) 25. Na5 $18 {[%emt 0:08:57] BESTDEEP} Qxc2 {[%emt 0:04:15] CPLX 3.8 66 (Qc6-b6) (=29)} 26. Bd2 {[%emt 0:09:44] CPLX 5.2. White is winning.} Qxd1+ {[%emt 0:11:57] EASY} 27. Rxd1 {[%emt 0:00:05] RECAPT} f4 {[%emt 0:00:11] CPLX 2.6 11 (Bb7-d5) (=27)} 28. Rg5 {[%emt 0:00:52] CPLX 3.0} ({Inferior is} 28. Nxb7 fxg3 29. Bxb4 Rxf2 $15) 28... h6 {[%emt 0:00:55] BESTDEEP} 29. Bxb4 {[%emt 0:00:50] Weighted Error Value: White=0.07 (flawless) /Black=0.29 (precise)} ({Not} 29. Nxb7 hxg5 30. Bxb4 Rf6 $18) 1-0

[Event "ESP-chT Honor Division 2022"]
[Site "Linares"]
[Date "2022.09.20"]
[Round "4.1"]
[White "Shirov, Alexei"]
[Black "Cheparinov, Ivan"]
[Result "1/2-1/2"]
[ECO "B23"]
[WhiteElo "2673"]
[BlackElo "2686"]
[Annotator "TA"]
[PlyCount "87"]
[EventDate "2022.09.17"]
[EventType "team-tourn"]
[EventCountry "ESP"]
[SourceTitle "playchess.com"]
[Source "ChessBase"]
[SourceQuality "1"]
[TimeControl "5400+30"]

{[%evp 9,87,0,0,-9,-17,-18,12,4,12,8,16,0,6,12,9,10,14,7,9,0,14,9,17,6,11,12,6,2,6,11,30,12,13,0,0,-14,-12,-4,-4,-10,-11,-22,0,0,0,0,0,0,0,0,0,-8,0,0,0,-20,-20,-20,-20,-31,-8,-75,8,8,0,7,15,8,8,8,8,8,8,8,8,8,8,8,8,8]} 1. e4 {[%emt 0:00:03]} c5 {[%emt 0:00:03]} 2. Nc3 {[%emt 0:00:05]} d6 {[%emt 0:00:12]} 3. d4 {[%emt 0:00:05]} cxd4 {[%emt 0:00:04]} 4. Qxd4 {[%emt 0:00:03]} Nc6 {[%emt 0:00:06]} 5. Qd2 {[%emt 0:00:02]} Nf6 {[%emt 0:01:10] CPLX 2.0} (5... g6 6. b3 Bh6 7. f4 Nf6 8. Bb2 O-O 9. O-O-O a5 10. a4 Nb4 11. Nf3 Bg4 12. Kb1 Rc8 13. Bc4 Qb6 14. h3 Bxf3 15. gxf3 Nh5 16. Ne2 Rxc4 17. bxc4 Rc8 18. Qc3 Bg7 19. Qb3 Bxb2 20. Kxb2 Qc5 21. f5 Qe5+ 22. Kb1 Nf6 23. Nc3 Rc5 24. Nb5 {0-1 (55) Shirov,A (2662)-Cheparinov,I (2667) Tornelo INT 2021}) 6. b3 {[%emt 0:00:08] CPLX 2.0 9 (Bf1-c4) (=9). B23: Closed Sicilian: Lines without g3.} e6 {[%emt 0:00:05] BESTDEEP} 7. Bb2 {[%emt 0:00:16] BESTDEEP} d5 {[%emt 0:00:05] CPLX 2.1 30 (Bf8-e7) (=10) is now debated instead of 7...Be7.} 8. exd5 {[%emt 0:02:16] BESTDEEP} exd5 {[%emt 0:00:08] RECAPT} 9. O-O-O {[%emt 0:03:38][%cal Rc3d5,Ba1d1,Bd1d2,Bd2e2][%mdl 32] BESTDEEP} Be6 $1 {[%emt 0:00:05] DEEPSTRONG} 10. Kb1 {[%emt 0:36:49] CPLX 2.2 16 (Bf1-d3) (=5)} Qa5 $1 {[%emt 0:01:55] DEEPSTRONG} 11. Nb5 {[%emt 0:08:52] BESTDEEP} Qxd2 {[%emt 0:00:12] CPLX 3.5} 12. Rxd2 {[%emt 0:00:14] RECAPT} Bb4 {[%emt 0:09:16] CPLX 2.2} 13. Re2 {[%emt 0:19:43] BESTDEEP} O-O-O {[%emt 0:02:34] Prevents Nc7. BESTDEEP} 14. Nf3 {[%emt 0:00:03] CPLX 2.6 9 (Nb5-d4) (=4)} Rhe8 {[%emt 0:08:50] CPLX 2.6 14 (Be6-g4) (=4)} 15. Nfd4 {[%emt 0:03:32] BESTDEEP} Bd7 {[%emt 0:23:49] CPLX 2.9 8 (Bb4-c5) (=5)} 16. f3 {[%emt 0:00:16] Inhibits Ne4. BESTDEEP} a6 {[%emt 0:01:00] CPLX 3.0 5 (Bb4-c5) (=5)} 17. Nxc6 {[%emt 0:00:14] BESTDEEP} bxc6 {[%emt 0:01:02] [#] RECAPT} 18. Nc3 $146 {[%emt 0:00:07] BESTDEEP} ({Predecessor:} 18. Ba3 Bxa3 19. Nxa3 a5 20. Rxe8 Rxe8 21. Bd3 Kc7 22. Kc1 a4 23. Kd2 axb3 24. axb3 {½-½ (40) Jones,G (2670)-Donchenko,A (2646) Playchess.com INT 2020}) 18... Kb7 {[%emt 0:02:05] CPLX 2.4} 19. Na4 {[%emt 0:00:23] CPLX 2.4} Bf5 {[%emt 0:10:39] CPLX 2.6 19 (Rd8-c8) (=5)} 20. g4 {[%emt 0:00:13] CPLX 2.9 18 (Bb2-d4) (=3)} Bg6 {[%emt 0:00:04] CPLX 3.2} 21. h4 {[%emt 0:00:54] [#] Threatens to win with h5. CPLX 2.9 13 (Bb2-d4) (=4)} h5 {[%emt 0:01:17] CPLX 3.0} 22. g5 {[%emt 0:01:18] CPLX 3.2 14 (Bb2-d4) (=5)} Nd7 {[%emt 0:01:37] CPLX 3.0} 23. Bxg7 {[%emt 0:08:48] CPLX 2.7} Rxe2 $1 {[%emt 0:01:09] DEEPSTRONG} 24. Bxe2 {[%emt 0:00:04] RECAPT} Re8 {[%emt 0:00:01] EASY} 25. Bf1 {[%emt 0:03:42] CPLX 2.5 11 (Rh1-h2) (=5)} Ne5 {[%emt 0:07:28] MISS-Re8-e1 22 (Re8-e1) (=5)} 26. Bg2 {[%emt 0:01:03][%cal Oa2a3] CPLX 2.4 0 (Bf1-e2) (=4)} Nc4 {[%emt 0:12:42] CPLX 2.4 0 (Ne5-d7) (=4)} 27. bxc4 {[%emt 0:00:24] EASY} Re2 {[%emt 0:00:06] EASY} 28. Bh3 {[%emt 0:07:53] Black must now prevent Rc1. CPLX 3.1 0 (Kb1-a1) (=4)} ({Avoid the trap} 28. Bf1 $2 Rxc2 29. Bg2 (29. Ka1 $2 {is a self mate.} Rc1+ 30. Kb2 Rb1#) 29... Rxg2+ 30. Ka1 dxc4 $19) 28... Bxc2+ {[%emt 0:01:05] EASY} 29. Ka1 {[%emt 0:00:03] aiming for Nc3. CPLX 2.8} Bxa4 {[%emt 0:00:12] EASY} 30. Rb1 {[%emt 0:00:08] CPLX 2.3 8 (c4xd5) (=4)} Re1 {[%emt 0:01:07] CPLX 2.6 8 (a6-a5) (=4)} 31. cxd5 {[%emt 0:02:42] CPLX 2.9} cxd5 {[%emt 0:01:13] RECAPT} 32. f4 {[%emt 0:01:21] CPLX 2.8 20 (Bh3-f5) (=4)} Bc2 {[%emt 0:03:42][%csl Gc2][%cal Re1b1] CPLX 2.7} 33. Rxe1 {[%emt 0:00:05] EASY} Bxe1 $11 {[%emt 0:00:03][%mdl 4096] Endgame KBB-KBB. RECAPT} 34. f5 $1 {[%emt 0:00:56] DEEPSTRONG} Bxh4 {[%emt 0:00:46] CPLX 2.0 23 (Be1-g3) (=4)} 35. Kb2 {[%emt 0:00:16] [#] MISSDEEP-g5-g6 67 (g5-g6) (=6)} (35. g6 $1 $11 fxg6 36. f6) 35... Be4 {[%emt 0:01:22] RELBLUND 83 (Bc2-a4) (=7)} (35... Ba4 $1 $17 36. g6 Be8 37. gxf7 Bxf7) 36. g6 {[%emt 0:00:30] CPLX 2.0=>BLUNDERREACT. The position is equal.} fxg6 {[%emt 0:00:15] EASY} 37. f6 {[%emt 0:00:07] EASY} d4 {[%emt 0:03:23] And now ...Bd5 would win. CPLX 2.3 8 (Kb7-c6) (=7)} 38. Be6 {[%emt 0:01:27] Prevents Bd5. MISS-f6-f7 7 (f6-f7) (=6)} Kc6 {[%emt 0:01:42] CPLX 2.4} 39. f7 {[%emt 0:00:20] EASY} Be7 {[%emt 0:00:04] ...Bd5 is the strong threat. EASY} 40. f8=Q {[%emt 0:00:27] CPLX 3.1} Bxf8 {[%emt 0:00:03] EASY} 41. Bxf8 {[%emt 0:00:05] RECAPT} h4 {[%emt 0:02:08] Strongly threatening ...Bf5. CPLX 2.3 0 (Be4-f5) (=6)} 42. Be7 {[%emt 0:00:20] EASY} Bf5 $1 {[%emt 0:00:02] CPLX 2.4} 43. Bxf5 {[%emt 0:00:08] EASY} gxf5 {[%emt 0:00:03] RECAPT} 44. Bxh4 {[%emt 0:00:06] Weighted Error Value: White=0.06 (flawless) /Black=0.08 (flawless)} 1/2-1/2